fUSD/lending_fUSD_20240803
["ID","MTS","AMOUNT","RATE_DAILY","PERIOD"]
[334026250,1722690649159,-150.0,0.00023734,2]
[334026251,1722690649168,-356.15,0.00023734,2]
[334026252,1722690649177,-801.49,0.00023734,2]
[334026253,1722690649187,-150.0,0.00023734,2]
[334026254,1722690649196,-150.0,0.00023734,2]
[334026255,1722690649205,-425.91,0.00023734,2]
[334026256,1722690649215,-425.91,0.00023734,2]
[334026257,1722690649225,-425.91,0.00023734,2]
[334026258,1722690649234,-9653.7597985,0.00023839,2]
[334026259,1722690649243,-800.0,0.00023904,2]
[334026260,1722690649253,-1000.0,0.00023904,2]
[334026261,1722690649262,-1400.0,0.00023904,2]
[334026262,1722690649271,-1200.0,0.00023904,2]
[334026263,1722690649281,-152.987167,0.00023973,2]
[334026264,1722690649290,-5022.09397,0.00024,30]
[334026265,1722690649300,-513.37,0.0002402,2]
[334026266,1722690649309,-174.0,0.00024164,2]
[334026267,1722690649318,-356.08,0.00024192,2]
[334026268,1722690649328,-336.044,0.00024193,2]
[334026269,1722690649337,-438.655,0.00024193,2]
[334026270,1722690649346,-1834.563,0.00024193,2]
[334026271,1722690649356,-288.0,0.00024193,2]
[334026272,1722690649365,-567.661,0.00024193,2]
[334026273,1722690649375,-150.0,0.00024225,2]
[334026274,1722690649384,-874.0,0.00024259,2]
[334026275,1722690649393,-2000.0,0.000243,2]
[334026276,1722690649403,-303.31,0.00024378,2]
[334026277,1722690649412,-150.0,0.00024378,2]
[334026278,1722690649422,-150.0,0.00024378,2]
[334026279,1722690649431,-150.0,0.00024378,2]
[334026280,1722690649440,-150.0,0.00024378,2]
[334026281,1722690649450,-150.0,0.00024378,2]
[334026282,1722690649460,-150.0,0.00024378,2]
[334026283,1722690649469,-150.0,0.00024378,2]
[334026284,1722690649479,-150.0,0.00024378,2]
[334026285,1722690649488,-150.0,0.00024378,2]
[334026286,1722690649497,-300.0,0.00024378,2]
[334026287,1722690649507,-1000.0,0.00024418,2]
[334026288,1722690649516,-300.0,0.00024452,2]
[334026289,1722690649526,-874.0,0.00024509,2]
[334026290,1722690649535,-150.0,0.00024531,2]
[334026291,1722690649545,-425.91,0.00024556,2]
[334026292,1722690649554,-425.91,0.00024556,2]
[334026293,1722690649563,-150.0,0.00024556,2]
[334026294,1722690649573,-425.91,0.00024556,2]
[334026295,1722690649583,-425.91,0.00024556,2]
[334026296,1722690649592,-150.0,0.00024556,2]
[334026297,1722690649602,-419.99,0.00024556,2]
[334026298,1722690649613,-22059.65000001,0.00024559,21]
[334026299,1722690649625,-500.0,0.00024657,9]
[334026300,1722690649635,-387.36126377,0.00024657,9]
[334026301,1722690649644,-500.0,0.00024657,9]
[334026302,1722690649653,-342.01078164,0.00024657,9]
[334026303,1722690649663,-500.0,0.00024657,9]
[334026304,1722690649673,-284.82,0.00024657,9]
[334026305,1722690649682,-500.0,0.00024657,9]
[334026306,1722690649692,-500.0,0.00024657,9]
[334026307,1722690649701,-500.0,0.00024657,9]
[334026308,1722690649711,-500.0,0.00024657,9]
[334026309,1722690649720,-302.45,0.00024657,9]
[334026310,1722690649729,-500.0,0.00024657,9]
[334026311,1722690649738,-500.0,0.00024657,9]
[334026312,1722690649747,-500.0,0.00024657,9]
[334026313,1722690649757,-500.0,0.00024657,9]
[334026314,1722690649766,-500.0,0.00024657,9]
[334026315,1722690649776,-500.0,0.00024657,9]
[334026316,1722690649785,-500.0,0.00024657,9]
[334026317,1722690649794,-265.59041934,0.00024657,9]
[334026318,1722690649804,-500.0,0.00024657,9]
[334026319,1722690649813,-500.0,0.00024657,9]
[334026320,1722690649823,-500.0,0.00024657,9]
[334026321,1722690649834,-500.0,0.00024657,9]
[334026322,1722690649843,-500.0,0.00024657,9]
[334026323,1722690649852,-500.0,0.00024657,9]
[334026324,1722690649862,-500.0,0.00024657,9]
[334026325,1722690649872,-223.54,0.00024657,9]
[334026326,1722690649882,-500.0,0.00024657,9]
[334026327,1722690649891,-500.0,0.00024657,9]
[334026328,1722690649901,-500.0,0.00024657,9]
[334026329,1722690649910,-500.0,0.00024657,9]
[334026330,1722690649919,-500.0,0.00024657,9]
[334026331,1722690649929,-500.0,0.00024657,9]
[334026332,1722690649938,-500.0,0.00024657,9]
[334026333,1722690649948,-500.0,0.00024657,9]
[334026334,1722690649959,-500.0,0.00024657,9]
[334026335,1722690649969,-500.0,0.00024657,9]
[334026336,1722690649979,-173.88150815,0.00024657,9]
[334026337,1722690649989,-500.0,0.00024657,9]
[334026338,1722690649998,-174.50927116,0.00024657,9]
[334026339,1722690650007,-257.57822805,0.00024657,9]
[334026340,1722690650017,-249.19823852,0.00024657,9]
[334026341,1722690650027,-275.66849187,0.00024657,9]
[334026342,1722690650036,-500.0,0.00024657,9]
[334026343,1722690650045,-500.0,0.00024657,9]
[334026344,1722690650054,-500.0,0.00024657,9]
[334026345,1722690650064,-500.0,0.00024657,9]
[334026346,1722690650073,-150.82082562,0.00024657,9]
[334026347,1722690650082,-500.0,0.00024657,9]
[334026348,1722690650092,-500.0,0.00024657,9]
[334026349,1722690650101,-500.0,0.00024657,9]
[334026350,1722690650110,-500.0,0.00024657,9]
[334026351,1722690650119,-500.0,0.00024657,9]
[334026352,1722690650129,-500.0,0.00024657,9]
[334026353,1722690650138,-500.0,0.00024657,9]
[334026354,1722690650148,-348.85804723,0.00024657,9]
[334026355,1722690650157,-820.16,0.00024657,9]
[334026356,1722690650167,-820.16,0.00024657,9]
[334026357,1722690650176,-820.16,0.00024657,9]
[334026358,1722690650185,-820.16,0.00024657,9]
[334026359,1722690650195,-820.16,0.00024657,9]
[334026360,1722690650204,-820.16,0.00024657,9]
[334026361,1722690650215,-500.0,0.00024657,9]
[334026362,1722690650224,-820.16,0.00024657,9]
[334026363,1722690650234,-532.41555777,0.00024657,9]
[334026364,1722690650244,-820.16,0.00024657,9]
[334026365,1722690650254,-820.16,0.00024657,9]
[334026366,1722690650264,-820.16,0.00024657,9]
[334026367,1722690650276,-820.16,0.00024657,9]
[334026368,1722690650286,-500.0,0.00024657,9]
[334026369,1722690650295,-500.0,0.00024657,9]
[334026370,1722690650306,-500.0,0.00024657,9]
[334026371,1722690650315,-500.0,0.00024657,9]
[334026372,1722690650324,-500.0,0.00024657,9]
[334026373,1722690650333,-500.0,0.00024657,9]
[334026374,1722690650343,-500.0,0.00024657,9]
[334026375,1722690650352,-500.0,0.00024657,9]
[334026376,1722690650362,-500.0,0.00024657,9]
[334026377,1722690650371,-500.0,0.00024657,9]
[334026378,1722690650381,-500.0,0.00024657,9]
[334026379,1722690650390,-185.21498294,0.00024657,2]
[334026380,1722690650400,-874.0,0.00024759,2]
[334026381,1722690650410,-500.0,0.00024797,9]
[334026382,1722690650419,-500.0,0.000248,2]
[334026383,1722690650429,-7559.73436517,0.000248,20]
[334026384,1722690650438,-150.0,0.00024802,2]
[334026385,1722690650449,-500.0,0.00024875,2]
[334026386,1722690650459,-500.0,0.00024875,2]
[334026387,1722690650469,-500.0,0.00024875,2]
[334026388,1722690650479,-500.0,0.00024875,2]
[334026389,1722690650489,-500.0,0.00024875,2]
[334026390,1722690650498,-376.6419,0.00024875,2]
[334026391,1722690650508,-500.0,0.00024875,2]
[334026392,1722690650517,-500.0,0.00024875,2]
[334026393,1722690650529,-500.0,0.00024875,2]
[334026394,1722690650543,-500.0,0.00024875,2]
[334026395,1722690650553,-500.0,0.00024875,2]
[334026396,1722690650561,-500.0,0.00024875,2]
[334026397,1722690650570,-500.0,0.00024875,2]
[334026398,1722690650579,-500.0,0.00024875,2]
[334026399,1722690650587,-500.0,0.00024875,2]
[334026400,1722690650597,-500.0,0.00024875,2]
[334026401,1722690650606,-500.0,0.00024886,2]
[334026402,1722690650620,-2000.0,0.000249,3]
[334026403,1722690650630,-153.85,0.000249,31]
[334026404,1722690650640,-153.85,0.000249,31]
[334026405,1722690650650,-153.85,0.000249,31]
[334026406,1722690650661,-153.85,0.000249,31]
[334026407,1722690650671,-153.85,0.000249,31]
[334026408,1722690650681,-153.85,0.000249,31]
[334026409,1722690650691,-153.85,0.000249,31]
[334026410,1722690650702,-1970.57635196,0.000249,2]
[334026411,1722690650713,-157.65370641,0.000249,2]
[334026412,1722690650723,-1000.0,0.00024932,120]
[334026413,1722690650733,-500.0,0.00024932,120]
[334026414,1722690650743,-739.0,0.0002495,2]
[334026415,1722690650752,-739.0,0.0002495,2]
[334026416,1722690650762,-739.0,0.0002495,2]
[334026417,1722690650772,-739.0,0.0002495,2]
[334026418,1722690650783,-739.0,0.0002495,2]
[334026419,1722690650794,-739.0,0.0002495,2]
[334026420,1722690650803,-739.0,0.0002495,2]
[334026421,1722690650813,-739.0,0.0002495,2]
[334026422,1722690650823,-739.0,0.0002495,2]
[334026423,1722690650833,-739.0,0.0002495,2]
[334026424,1722690650843,-1070702.2004513,0.0002498,2]
[334026425,1722690650853,-601.94913587,0.0002499,2]
[334026426,1722690650863,-321.69137635,0.00024999,2]
[334026427,1722690650873,-500.0,0.00024999,9]
[334026428,1722690650882,-500.0,0.00024999,9]
[334026429,1722690650891,-500.0,0.00024999,9]
[334026430,1722690650901,-500.0,0.00024999,9]
[334026431,1722690650911,-500.0,0.00024999,9]
[334026432,1722690650920,-500.0,0.00024999,9]
[334026433,1722690650930,-500.0,0.00024999,9]
[334026434,1722690650939,-500.0,0.00024999,9]
[334026435,1722690650948,-500.0,0.00024999,9]
[334026436,1722690650958,-820.16,0.00024999,9]
[334026437,1722690650967,-820.16,0.00024999,9]
[334026438,1722690650977,-820.16,0.00024999,9]
[334026439,1722690650986,-820.16,0.00024999,9]
[334026440,1722690650996,-820.16,0.00024999,9]
[334026441,1722690651005,-820.16,0.00024999,9]
[334026442,1722690651014,-820.16,0.00024999,9]
[334026443,1722690651023,-820.16,0.00024999,9]
[334026444,1722690651034,-820.16,0.00024999,9]
[334026445,1722690651044,-820.16,0.00024999,9]
[334026446,1722690651053,-820.16,0.00024999,9]
[334026447,1722690651063,-820.33929505,0.00024999,9]
[334026448,1722690651073,-500.0,0.00024999,9]
[334026449,1722690651082,-500.0,0.00024999,9]
[334026450,1722690651091,-186.36,0.00024999,9]
[334026451,1722690651101,-584.42382554,0.00025,2]
[334026452,1722690651110,-160169.85795107,0.00025,2]
[334026453,1722690651384,-159.13045808,0.000109,2]
[334026454,1722690651394,-1073.73542888,0.0001695,2]
[334026455,1722690651403,-155.0,0.00016999,2]
[334026456,1722690651412,-155.0,0.00016999,2]
[334026457,1722690651422,-155.0,0.00017004,2]
[334026458,1722690651432,-155.0,0.00017004,2]
[334026459,1722690651441,-329.79136714,0.00017259,2]
[334026460,1722690651451,-155.0,0.0001738,2]
[334026461,1722690651461,-155.0,0.0001738,2]
[334026462,1722690651471,-155.0,0.0001738,2]
[334026463,1722690651480,-155.0,0.00017399,2]
[334026464,1722690651489,-206.59146968,0.00017458,2]
[334026465,1722690651499,-181.65187256,0.00017458,2]
[334026466,1722690651508,-155.0,0.00017533,2]
[334026467,1722690651517,-210.87847398,0.00017636,2]
[334026468,1722690651527,-243.04057273,0.00017636,2]
[334026469,1722690651536,-129.29399295,0.00017782,2]
[334026470,1722690651548,-73.9420245,0.00017782,2]
[334026471,1722690651557,-155.0,0.00019725,2]
[334026472,1722690651566,-690.1380005,0.00025,2]
[334026473,1722690651577,-319.050115,0.00025,2]
[334026474,1722690651588,-1200.6394,0.00025,2]
[334026475,1722690651599,-972.42227312,0.00025,2]
[334026476,1722690651610,-313.354957,0.00025,2]
[334026477,1722690651627,-690.90239874,0.00025,2]
[334026478,1722690651639,-3380.07284228,0.00025,2]
[334026479,1722690651650,-530.6,0.00025,2]
[334026480,1722690651663,-782.42653634,0.00025,2]
[334026481,1722690651675,-51420.0,0.00025,2]
[334026482,1722690651687,-640.00000001,0.00025,2]
[334026486,1722691555478,471.19554702,6.94e-05,2]
[334026487,1722691555508,2171.72112953,6.94e-05,2]
[334026488,1722691555537,1825.13920455,6.94e-05,2]
[334026489,1722691555563,2716.62778489,6.94e-05,2]
[334026490,1722691656175,1284.22835153,6.94e-05,2]
[334026491,1722691659027,820.16,8.412e-05,2]
[334026493,1722691674556,163.66789618,8.412e-05,2]
[334026495,1722691686261,155.0,8.412e-05,2]
[334026496,1722691686547,692.5869016,6.94e-05,2]
[334026497,1722691691402,155.0,8.412e-05,2]
[334026503,1722691748148,388.87633484,8.412e-05,2]
[334026511,1722691833156,-300.0,9.999e-05,2]
[334026512,1722691833166,-104.4999995,9.999e-05,2]
[334026513,1722691833180,-195.5000005,9.999e-05,2]
[334026514,1722691833191,-359.88074679,0.0001,2]
[334026515,1722691833201,-9649.27817692,0.0001,2]
[334026516,1722691833211,-155.0,0.00010196,2]
[334026517,1722691833222,-425.68,0.00010262,2]
[334026518,1722691833232,-4490.5451,0.000109,2]
[334026519,1722691833243,-2543.2201,0.000109,2]
[334026520,1722691833253,-422.35,0.00010959,2]
[334026521,1722691833263,-351.95,0.00010959,2]
[334026522,1722691833273,-293.3,0.00010959,2]
[334026523,1722691833283,-244.41,0.00010959,2]
[334026524,1722691833293,-203.68,0.00010959,2]
[334026525,1722691833303,-169.73,0.00010959,2]
[334026526,1722691833312,-848.68,0.00010959,2]
[334026527,1722691833322,-1573.57344927,0.00010999,2]
[334026528,1722691833331,-420.0,0.00010999,2]
[334026529,1722691833341,-420.0,0.00010999,2]
[334026530,1722691833351,-250.0,0.00011,2]
[334026531,1722691833361,-155.0,0.00011105,2]
[334026532,1722691833371,-264.27285274,0.00011105,2]
[334026533,1722691833381,-1860.7009197,0.00011176,2]
[334026534,1722691833392,-287.04795587,0.00011176,2]
[334026535,1722691833404,-212.94204413,0.00011176,2]
[334026536,1722691833414,-150.99,0.00011176,2]
[334026537,1722691833424,-22639.6617797,0.00011186,2]
[334026538,1722691833433,-25301.89520735,0.00011186,2]
[334026539,1722691833443,-696.35,0.00011186,2]
[334026540,1722691833454,-7270.63072608,0.00011186,2]
[334026541,1722691833463,-4343.45221031,0.00011186,2]
[334026542,1722691833476,-347.96815075,0.00011186,2]
[334026544,1722691833488,-2913.56941785,0.00011186,2]
[334026546,1722691833500,-2920.58032322,0.00011186,2]
[334026547,1722691833509,-7000.0,0.00011186,2]
[334026548,1722691833519,-1747.98,0.00011193,2]
[334026550,1722691833529,-5399.26968187,0.00011205,2]
[334026552,1722691833539,-250.0,0.00011749,2]
[334026554,1722691833549,-10000.0,0.00011758,2]
[334026555,1722691833558,-3976.46597667,0.0001185,2]
[334026556,1722691833568,-250.0,0.00011864,2]
[334026557,1722691833578,-538.79782137,0.00011889,2]
[334026558,1722691833589,-159.13045808,0.00011889,2]
[334026559,1722691833599,-15469.99110515,0.00011959,2]
[334026560,1722691833608,-3118.19667245,0.00011959,2]
[334026561,1722691833618,-11428.29362103,0.00011977,2]
[334026562,1722691833631,-250.0,0.00011977,2]
[334026563,1722691833643,-12221.70637897,0.00011977,2]
[334026564,1722691833653,-550.0,0.00012,2]
[334026565,1722691833666,-179.06,0.00012,2]
[334026566,1722691833677,-179.06,0.00012,2]
[334026567,1722691833687,-179.06,0.00012,2]
[334026568,1722691833697,-179.06,0.00012,2]
[334026569,1722691833707,-179.06,0.00012,2]
[334026570,1722691833718,-179.06,0.00012,2]
[334026571,1722691833728,-179.06,0.00012,2]
[334026572,1722691833738,-179.06,0.00012,2]
[334026573,1722691833748,-179.06,0.00012,2]
[334026574,1722691833758,-179.06,0.00012,2]
[334026575,1722691833768,-179.06,0.00012,2]
[334026576,1722691833778,-179.06,0.00012,2]
[334026577,1722691833788,-179.06,0.00012,2]
[334026578,1722691833798,-179.06,0.00012,2]
[334026579,1722691833808,-179.06,0.00012,2]
[334026580,1722691833818,-179.06,0.00012,2]
[334026581,1722691833828,-179.06,0.00012,2]
[334026582,1722691833839,-179.06,0.00012,2]
[334026583,1722691833849,-179.06,0.00012,2]
[334026584,1722691833859,-179.06,0.00012,2]
[334026585,1722691833868,-179.06,0.00012,2]
[334026586,1722691833878,-360.0,0.00012099,2]
[334026587,1722691833889,-587.0,0.00012099,2]
[334026588,1722691833898,-179.06,0.00012115,2]
[334026589,1722691833908,-179.06,0.00012115,2]
[334026590,1722691833958,-179.06,0.00012115,2]
[334026591,1722691833968,-179.06,0.00012115,2]
[334026592,1722691833979,-179.06,0.00012115,2]
[334026593,1722691833989,-179.06,0.00012115,2]
[334026594,1722691834004,-179.06,0.00012115,2]
[334026595,1722691834014,-179.06,0.00012115,2]
[334026596,1722691834023,-179.06,0.00012115,2]
[334026597,1722691834033,-44374.66,0.00012125,2]
[334026598,1722691834042,-200.0,0.00012322,2]
[334026599,1722691834052,-200.0,0.00012327,2]
[334026600,1722691834062,-155.08214719,0.00012327,2]
[334026601,1722691834071,-5000.0,0.0001236,2]
[334026602,1722691834081,-3079.46952702,0.0001236,2]
[334026603,1722691834091,-3079.46952702,0.0001236,2]
[334026604,1722691834101,-1836.69666447,0.00012397,2]
[334026605,1722691834110,-1138.09658459,0.00012397,2]
[334026606,1722691834119,-1745.6,0.00012406,2]
[334026607,1722691834129,-289.62707642,0.000125,2]
[334026608,1722691834138,-11099.99960187,0.0001251,2]
[334026609,1722691834148,-425.68,0.00012526,2]
[334026610,1722691834158,-1500.0,0.0001254,2]
[334026611,1722691834167,-1297.13015026,0.0001254,2]
[334026612,1722691834179,-1049.73016214,0.00012581,2]
[334026613,1722691834189,-1049.73016214,0.00012581,2]
[334026614,1722691834199,-3401.38185264,0.00012581,2]
[334026615,1722691834208,-1622.19894296,0.00012581,2]
[334026616,1722691834218,-2144.08330696,0.00012581,2]
[334026617,1722691834228,-531.81153519,0.00012613,2]
[334026618,1722691834237,-195.08823651,0.00012613,2]
[334026619,1722691834247,-298.38594994,0.00012665,2]
[334026620,1722691834257,-1175.8459067,0.00012665,2]
[334026621,1722691834266,-1175.8459067,0.00012666,2]
[334026622,1722691834276,-1274.49304289,0.00012666,2]
[334026623,1722691834285,-649.29247659,0.00012666,2]
[334026624,1722691834294,-205.75981917,0.00012666,2]
[334026625,1722691834304,-628.09541039,0.00012666,2]
[334026626,1722691834313,-155.0,0.00012666,2]
[334026627,1722691834323,-206.59146968,0.00012666,2]
[334026628,1722691834332,-686.40870172,0.00012666,2]
[334026629,1722691834341,-155.0,0.00012666,2]
[334026630,1722691834350,-482.34902135,0.00012666,2]
[334026631,1722691834360,-207.5535028,0.00012666,2]
[334026632,1722691834369,-188.63628821,0.00012681,2]
[334026633,1722691834378,-193.46340971,0.00012681,2]
[334026634,1722691834388,-188.63628821,0.00012681,2]
[334026635,1722691834398,-365.42577775,0.00012681,2]
[334026636,1722691834408,-202.9826193,0.00012681,2]
[334026637,1722691834417,-155.0,0.00012681,2]
[334026638,1722691834430,-653.07757773,0.00012681,2]
[334026639,1722691834439,-155.0,0.00012681,2]
[334026640,1722691834449,-159.47000849,0.00012681,2]
[334026641,1722691834459,-159.47000849,0.0001269,2]
[334026642,1722691834468,-164.25896098,0.0001269,2]
[334026643,1722691834478,-349.40332406,0.0001269,2]
[334026644,1722691834488,-155.0,0.0001269,2]
[334026645,1722691834498,-155.09867252,0.0001269,2]
[334026646,1722691834507,-236.13758284,0.0001269,2]
[334026647,1722691834517,-215.09595876,0.0001269,2]
[334026648,1722691834527,-164.25896098,0.0001269,2]
[334026649,1722691834536,-169.34352278,0.0001269,2]
[334026650,1722691834546,-155.0,0.0001269,2]
[334026651,1722691834555,-722.78328973,0.00012696,2]
[334026652,1722691834564,-439.70755762,0.00012696,2]
[334026653,1722691834574,-346.11432527,0.00012696,2]
[334026654,1722691834584,-363.85697976,0.00012696,2]
[334026655,1722691834594,-454.19419225,0.00012696,2]
[334026656,1722691834604,-218.72259173,0.00012696,2]
[334026657,1722691834613,-363.85697976,0.00012696,2]
[334026658,1722691834623,-359.08278976,0.00012696,2]
[334026659,1722691834633,-155.0,0.00012696,2]
[334026660,1722691834643,-297.22909311,0.00012696,2]
[334026661,1722691834652,-155.0,0.00012696,2]
[334026662,1722691834662,-155.0,0.00012696,2]
[334026663,1722691834672,-310.0,0.00012749,2]
[334026664,1722691834684,-155.0,0.00012749,2]
[334026665,1722691834694,-400.0,0.00012749,2]
[334026666,1722691834703,-158.86466502,0.00012749,2]
[334026667,1722691834713,-155.0,0.00012749,2]
[334026668,1722691834724,-357.14442617,0.00012749,2]
[334026669,1722691834733,-155.0,0.00012749,2]
[334026670,1722691834742,-155.0,0.00012749,2]
[334026671,1722691834751,-155.0,0.00012818,2]
[334026672,1722691834760,-367.56511397,0.00012818,2]
[334026673,1722691834770,-347.37102947,0.00012818,2]
[334026674,1722691834780,-265.21397656,0.00012826,2]
[334026675,1722691834789,-4473.05915228,0.00013132,2]
[334026676,1722691834798,-154.88296738,0.0001326,2]
[334026677,1722691834808,-823.0,0.00013309,2]
[334026678,1722691834818,-538.79782132,0.00013335,2]
[334026679,1722691834827,-152.28,0.00013569,2]
[334026680,1722691834837,-1901.72668957,0.00013576,2]
[334026681,1722691834846,-591654.78938462,0.00013579,2]
[334026682,1722691834859,-3132.3393828,0.00013579,2]
[334026683,1722691834870,-19068.68834821,0.00013579,2]
[334026684,1722691834882,-1521.76221221,0.00013579,2]
[334026685,1722691834893,-500.0,0.00013579,2]
[334026686,1722691834904,-2744.26708576,0.00013579,2]
[334026687,1722691834915,-432.92,0.00013579,2]
[334026688,1722691834927,-704.92261432,0.00013579,2]
[334026689,1722691834938,-2332.32978955,0.00013579,2]
[334026690,1722691834950,-713.07366266,0.00013579,2]
[334026691,1722691834961,-893.59727248,0.00013579,2]
[334026692,1722691834972,-386.23408273,0.00013579,2]
[334026693,1722691834983,-919.70999,0.00013579,2]
[334026694,1722691835126,-3164.75000067,0.00013579,2]
[334026703,1722691837805,-2515.47398675,0.00011959,2]
[334026704,1722691837817,-602.7226857,0.00011959,2]
[334026705,1722691837826,-628.94827501,0.00012397,2]
[334026713,1722691838961,-618.74932003,0.00012397,2]
[334026714,1722691838972,-163.54974175,0.00012397,2]
[334026715,1722691838983,-1049.73016214,0.0001254,2]
[334026716,1722691838993,-1112.40214539,0.00012581,2]
[334026717,1722691839004,-155.0,0.00012749,2]
[334026718,1722691839014,-959.43741008,0.00013579,2]
[334026719,1722691839025,-2859.88054064,0.00013579,2]
[334026720,1722691839037,-20270.69836658,0.00013579,2]
[334026721,1722691839061,-43098.00560853,0.00013579,2]
[334026722,1722691839070,-400.0,0.00013692,2]
[334026723,1722691839079,-719.34566812,0.0001372,2]
[334026724,1722691839090,-464.3666052,0.00013899,2]
[334026725,1722691839100,-1183.97736117,0.00013899,2]
[334026726,1722691839110,-600.0,0.00014,2]
[334026727,1722691839120,-165.76127034,0.00014546,2]
[334026728,1722691839130,-1073.73542888,0.00014579,2]
[334026729,1722691839139,-1152.0,0.0001464,2]
[334026730,1722691839149,-500.0,0.00014645,2]
[334026731,1722691839158,-500.0,0.00014645,2]
[334026732,1722691839167,-328.72088366,0.00014645,2]
[334026733,1722691839177,-5002.3410963,0.00014646,2]
[334026734,1722691839187,-5000.0,0.00014646,2]
[334026735,1722691839197,-5000.0,0.00014646,2]
[334026736,1722691839207,-5000.0,0.00014646,2]
[334026737,1722691839217,-538.79782132,0.0001478,2]
[334026738,1722691839226,-159.13045808,0.00015142,2]
[334026739,1722691839236,-298.04833193,0.0001587,2]
[334026740,1722691839245,-528.47533138,0.00015897,2]
[334026741,1722691839255,-476.52703085,0.00015897,2]
[334026742,1722691839264,-528.47533138,0.00015912,2]
[334026743,1722691839274,-155.0,0.00016,2]
[334026744,1722691839284,-155.0,0.00016033,2]
[334026745,1722691839293,-391.0,0.00016103,2]
[334026746,1722691839302,-400.0,0.00016126,2]
[334026747,1722691839311,-165.36567453,0.00016159,2]
[334026748,1722691839320,-164.23718751,0.00016159,2]
[334026749,1722691839330,-165.36567453,0.00016159,2]
[334026750,1722691839340,-538.79782132,0.00016226,2]
[334026751,1722691839349,-493.20816609,0.00016232,2]
[334026752,1722691839359,-519.69271657,0.00016232,2]
[334026753,1722691839368,-155.0,0.00016441,2]
[334026754,1722691839378,-464.36660518,0.00016649,2]
[334026755,1722691839387,-255.35,0.00016802,2]
[334026756,1722691839396,-255.35,0.00017396,2]
[334026757,1722691839406,-538.79782132,0.00017672,2]
[334026758,1722691839415,-669.0,0.000177,2]
[334026759,1722691839424,-255.35,0.00017991,2]
[334026760,1722691839435,-400.0,0.00018141,2]
[334026761,1722691839445,-159.13045808,0.00018395,2]
[334026762,1722691839454,-255.35,0.00018585,2]
[334026763,1722691839463,-500.0,0.00018972,2]
[334026764,1722691839473,-500.0,0.00018972,2]
[334026765,1722691839482,-538.79782132,0.00019117,2]
[334026766,1722691839491,-255.35,0.00019179,2]
[334026767,1722691839501,-500.0,0.00019267,2]
[334026769,1722691839511,-500.0,0.00019276,2]
[334026771,1722691839520,-500.0,0.00019285,2]
[334026772,1722691839530,-500.0,0.00019294,2]
[334026773,1722691839539,-500.0,0.00019302,2]
[334026774,1722691839548,-464.36660518,0.000194,2]
[334026775,1722691839558,-8500.0,0.00019452,2]
[334026777,1722691839567,-162.34886319,0.00019452,2]
[334026778,1722691839576,-500.0,0.0001952,2]
[334026779,1722691839586,-1892.0,0.00019615,2]
[334026780,1722691839595,-150.0,0.00019615,2]
[334026781,1722691839604,-282.586,0.00019615,2]
[334026782,1722691839614,-288.0,0.00019615,2]
[334026783,1722691839623,-202.767838,0.00019725,2]
[334026784,1722691839633,-1000.0,0.00019766,2]
[334026785,1722691839643,-255.35,0.00019773,2]
[334026787,1722691839653,-155.0,0.0002,2]
[334026788,1722691839662,-500.0,0.00020068,2]
[334026789,1722691839672,-500.0,0.00020068,2]
[334026790,1722691839683,-700.0,0.00020068,2]